[Event "American Cup Blitz 2025"]
[Site "Saint Louis"]
[Date "2025.03.24"]
[Round "9.4"]
[White "Caruana, Fabiano"]
[Black "So, Wesley"]
[Result "1-0"]
[Annotator "TA"]
[ECO "C47"]
[WhiteElo "2783"]
[BlackElo "2748"]
[PlyCount "149"]
[EventDate "2025.03.02"]
[EventType "k.o."]
[EventCountry "USA"]
[SourceTitle "playchess.com"]
[Source "ChessBase"]
[SourceQuality "1"]
[TimeControl "180+2"]

{[%evp 9,149,0,8,2,14,-10,9,-28,14,18,17,21,34,14,14,0,22,0,24,0,156,151,170,157,145,143,146,140,160,79,78,82,77,85,78,77,75,78,85,64,87,82,88,81,85,81,82,78,101,96,106,97,147,143,237,234,224,150,162,164,165,161,167,166,167,167,167,167,168,173,209,209,209,205,196,157,222,222,381,371,399,375,404,227,224,235,1016,363,5060,452,4794,3681,5632,469,29989,413,544,521,958,967,956,822,1007,862,830,758,489,0,821,771,741,473,510,346,501,456,1217,0,6745,640,1748,1643,29985,1073,1464,460,29984,29985,29982,1406,29987,1095,2027,462,29985,29986,29990,29991,29991,29992,29993,29993]} 1. e4 {[%emt 0:00:02]} e5 {[%emt 0:00:02]} 2. Nf3 {[%emt 0:00:02]} Nc6 {[%emt 0:00:02]} 3. Nc3 {[%emt 0:00:02]} (3. Bb5 Nf6 4. d3 Bc5 5. c3 O-O 6. O-O d5 7. exd5 Qxd5 8. Bc4 Qd8 9. b4 Bd6 10. Bg5 e4 11. dxe4 h6 12. Bxf6 Qxf6 13. Qc2 Ne5 14. Nbd2 Nxf3+ 15. Nxf3 Bg4 16. Nd4 Bxb4 17. h3 Bh5 18. f4 Bg6 19. Qb3 Bc5 {½-½ Caruana,F (2783)-So,W (2748) Champions Showdown Kings rapid 2025 (2.3)}) 3... Nf6 {[%emt 0:00:02]} 4. h3 {[%emt 0:00:02]} Bb4 {[%emt 0:00:02]} 5. Bd3 {[%emt 0:00:02]} d6 {[%emt 0:00:05]} 6. a3 {[%emt 0:00:08] C47: Scotch Four Knights and Four Knights with 4 g3.} Bc5 {[%emt 0:00:01]} 7. b4 {[%emt 0:00:05]} Bb6 {[%emt 0:00:03]} 8. O-O $5 {[%emt 0:00:17][%mdl 4] The position is equal. An interesting side line.} O-O {[%emt 0:00:02]} 9. Na4 {[%emt 0:00:12]} d5 {[%emt 0:00:09]} (9... Ne7 10. Re1 Bd7 11. Nxb6 axb6 12. Bb2 Ng6) 10. exd5 {[%emt 0:00:01]} Qxd5 {[%emt 0:00:01] ...e4 would now be deadly.} 11. Re1 {[%emt 0:00:14]} Bd4 {[%emt 0:00:33]} 12. Nxd4 {[%emt 0:00:16] A sharp opening} Nxd4 {[%emt 0:00:12]} 13. Bb2 {[%emt 0:00:06][%cal Bc1b2,Bb2d4,Bd4e5][%mdl 32]} (13. Nc3 Qd6 14. Nb5 Nxb5 15. Bxb5 e4 16. Bb2) 13... Re8 $146 {[%emt 0:00:13][%cal Oc8h3]} (13... Bxh3 $5 14. gxh3 Nf3+ 15. Kf1 Nh2+ 16. Kg1 Nf3+ $11) (13... Bxh3 14. f3 Bd7 15. Nc5 Rfe8 16. c4 Qd6 17. Re3 b6 18. Nb3 c5 19. Rb1 Ba4 {1-0 Martinez Alcantara,J (2606)-Costello,A (2262) Titled Tuesday intern op 11th Mar Late blitz 2025 (1)}) 14. Nc5 {[%emt 0:00:21]} (14. Nc3 {simplifies} Qc6 15. Ne4 Bf5 16. Bxd4 exd4 17. Nxf6+ Qxf6 18. Qf3) 14... Bf5 $2 {[%emt 0:00:27]} (14... Bxh3 $11 15. gxh3 Nf3+ 16. Kf1 Nh2+ 17. Kg1 Nf3+) 15. c4 $16 {[%emt 0:00:03]} Qc6 {[%emt 0:00:13][%cal Of5h3]} 16. Bxd4 $1 {[%emt 0:00:39]} (16. Bxf5 Nxf5 17. Rxe5 (17. Bxe5 Nh4 $16) 17... Nh4 $16) 16... Bxd3 {[%emt 0:00:01][%cal Bf5d3,Bd3c4,Bc4d5][%mdl 32]} 17. Bxe5 {[%emt 0:00:01]} (17. Rxe5 Rxe5 18. Bxe5 Bxc4 $16) 17... Bxc4 {[%emt 0:00:09]} 18. Rc1 {[%emt 0:00:01]} Bd5 {[%emt 0:00:24] [#]} 19. Ne4 {[%emt 0:00:13]} Qe6 {[%emt 0:00:10]} 20. Nxf6+ {[%emt 0:00:46]} (20. Bxc7 $2 Nxe4 (20... Bxe4 21. d3 $14) 21. d3 Bb3 22. Rxe4 Bxd1 $19) 20... gxf6 {[%emt 0:00:01]} 21. Bxc7 {[%emt 0:00:02]} Qxe1+ {[%emt 0:00:02]} 22. Qxe1 {[%emt 0:00:00] Successful Defense White} Rxe1+ {[%emt 0:00:01]} 23. Rxe1 {[%emt 0:00:01][%mdl 4096] Endgame KRB-KRB. White is a pawn up.} Rc8 {[%emt 0:00:01]} 24. Re7 {[%emt 0:00:03]} Bc6 {[%emt 0:00:05]} 25. Bf4 {[%emt 0:00:04]} Kg7 {[%emt 0:00:09] [#]} 26. b5 $1 {[%emt 0:00:04] White is more active.} Bxb5 {[%emt 0:00:10]} 27. Rxb7 {[%emt 0:00:01]} a6 {[%emt 0:00:01]} 28. Be3 {[%emt 0:00:03]} Rc1+ {[%emt 0:00:11]} 29. Kh2 {[%emt 0:00:01]} Ra1 {[%emt 0:00:01]} 30. Rb6 {[%emt 0:00:01]} Rxa3 {[%emt 0:00:10]} ({Better is} 30... Rc1 31. Rd6 Ra1) 31. Bd4 {[%emt 0:00:01]} h6 {[%emt 0:00:05]} (31... Ra2 $16 32. Bxf6+ (32. Rxf6 Kf8 $18) 32... Kf8) 32. Bxf6+ $18 {[%emt 0:00:06]} (32. Rxf6 Rd3 33. Be5 (33. Rxa6+ $2 Rxd4 34. Ra2 h5 $19) 33... h5 34. Rxa6+ Kh7) 32... Kh7 {[%emt 0:00:01]} 33. Bd4 {[%emt 0:00:01]} Rd3 {[%emt 0:00:01]} 34. Be3 {[%emt 0:00:01]} Rd5 {[%emt 0:00:14]} 35. Rxh6+ {[%emt 0:00:01]} Kg7 36. Rb6 {[%emt 0:00:02]} a5 {[%emt 0:00:01][%cal Ba6a5,Ba5a4,Ba4a3,Ba3a2][%mdl 32]} 37. Rb7 {[%emt 0:00:02]} a4 {[%emt 0:00:01]} 38. Ra7 {[%emt 0:00:01]} Rd6 {[%emt 0:00:02]} 39. Ra5 {[%emt 0:00:03]} Bd7 {[%emt 0:00:04]} 40. g4 {[%emt 0:00:01]} Rd3 {[%emt 0:00:02]} 41. Kg3 {[%emt 0:00:03]} a3 {[%emt 0:00:02]} 42. f4 {[%emt 0:00:06][%cal Bf2f4,Bf4f5][%mdl 32]} Be6 {[%emt 0:00:03]} (42... f5 $16 43. gxf5 Kf6) 43. f5 {[%emt 0:00:00]} Bd5 {[%emt 0:00:03]} (43... Bc4 {was necessary.} 44. h4 a2) 44. Kf4 {[%emt 0:00:01]} a2 {[%emt 0:00:00]} 45. g5 {[%emt 0:00:04]} Rb3 {[%emt 0:00:05]} 46. h4 {[%emt 0:00:01]} (46. Rxd5 Rb4+ (46... a1=Q $2 47. Bd4+ $18) 47. Rd4 a1=Q $11) (46. Bd4+ $142 Kf8 47. Bc3 (47. Rxd5 Rb4 $18)) 46... Rb4+ {[%emt 0:00:03]} 47. Kg3 {[%emt 0:00:03]} Bc4 $2 {[%emt 0:00:03]} (47... Kg8 48. h5 (48. Rxd5 $2 a1=Q $19) 48... Rb5) 48. h5 $2 {[%emt 0:00:02]} (48. Bd4+ f6 49. Bxf6+ Kf7 50. h5 Rb3+ 51. Bc3) 48... Rb3 $2 {[%emt 0:00:01]} (48... Bd3 49. f6+ (49. Rxa2 Bxf5 50. d4 Rb3 $18) 49... Kh7 50. Rxa2 Rb7) 49. Kf4 {[%emt 0:00:02]} (49. Rxa2 Rxe3+ 50. dxe3 Bxa2 $14) (49. h6+ $142 Kh7 50. g6+ (50. Rxa2 Rxe3+ 51. dxe3 Bxa2 $11) 50... fxg6 51. Ra7+ (51. Rxa2 Rxe3+ 52. dxe3 Bxa2 $11) 51... Kh8 52. fxg6 (52. Rxa2 Rxe3+ 53. dxe3 Bxa2 $11)) 49... Rb4 {[%emt 0:00:01]} (49... Rd3 $142 50. Ra7 Bb3 51. h6+ Kh7) 50. Bd4+ {[%emt 0:00:02]} Kh7 {[%emt 0:00:04]} 51. g6+ {[%emt 0:00:01]} (51. Ra8 $142 {[%csl Gd4][%cal Ra8h8]} f6 52. g6+ (52. Bxf6 $2 Bd5+ 53. Ke3 Bxa8 $19) (52. gxf6 Bf7 $18) (52. Ra7+ Kg8 $18) 52... Kg7 53. Ra7+ Bf7 54. Ke3 (54. Rxf7+ Kh8 $18)) 51... Kh6 {[%emt 0:00:02]} (51... fxg6 $18 52. hxg6+ Kh6) 52. Bc3 {[%emt 0:00:04]} (52. Ra8 $142 f6 53. Rh8+ (53. Bxf6 $2 Bd5+ 54. Ke3 Bxa8 $19) 53... Kg7 54. h6+ (54. Rh7+ Kf8 $18) (54. Ra8 Bd5 $18) 54... Kxh8 55. Bxf6+ Kg8 56. h7+ Kf8 57. h8=Q+ (57. h8=R+ Bg8+ 58. Kg5 Rb1 $18) 57... Bg8+ 58. Kg5) 52... Rb8 {[%emt 0:00:02]} 53. g7 {[%emt 0:00:03]} Kh7 {[%emt 0:00:01]} 54. f6 {[%emt 0:00:01]} Be6 {[%emt 0:00:01]} 55. Ke5 {[%emt 0:00:02]} Kh6 {[%emt 0:00:02]} 56. Kd6 {[%emt 0:00:01]} Kh7 {[%emt 0:00:00]} 57. Kc7 {[%emt 0:00:01]} Rc8+ {[%emt 0:00:01]} 58. Kd6 $2 {[%emt 0:00:02]} (58. Kb7 $18 Rc4 59. h6 (59. Rxa2 Bd5+ 60. Kb6 Rc6+ 61. Kb5 Rc7 $18)) 58... Rd8+ $2 {[%emt 0:00:02][%mdl 8192]} (58... Rb8 $11 59. Ra7 Kg8) 59. Ke5 {[%emt 0:00:03]} Kh6 {[%emt 0:00:01]} 60. Ra6 {[%emt 0:00:01]} Re8 {[%emt 0:00:03]} 61. Kd4 {[%emt 0:00:04][%cal Oa6e6] Dodges Bc4} Rd8+ {[%emt 0:00:02]} (61... Kh7 $142 62. Kc5 Kg8) 62. Kc5 {[%emt 0:00:01][%cal Oa6e6]} Rc8+ {[%emt 0:00:01]} (62... Bb3 $142 63. Ba1 Kh7) 63. Kd4 $2 {[%emt 0:00:02]} (63. Rc6 $18 Rxc6+ 64. Kxc6) 63... Kxh5 $2 {[%emt 0:00:06][%mdl 8192]} (63... Rd8+ $11 64. Kc5 Bb3) 64. Ke3 {[%emt 0:00:04]} (64. Rxe6 $142 fxe6 65. f7 Rxc3 66. f8=Q (66. g8=Q a1=Q $16)) 64... Re8 {[%emt 0:00:02]} 65. Kf4 {[%emt 0:00:01][%cal Oa6e6]} Kh6 {[%emt 0:00:01]} 66. Ra4 {[%emt 0:00:02]} (66. Rxe6 $142 a1=Q 67. Bxa1 (67. Rxe8 Qf1+ 68. Kg3 Qg1+ 69. Kh3 Qh1+ 70. Kg3 Qg1+ 71. Kh3 Qh1+ 72. Kg3 Qg1+ $11) 67... Rd8 68. Re3 Kh7 69. Kf5 Kg8 70. Be5 Rxd2 71. Bf4) 66... Rd8 {[%emt 0:00:03]} 67. Ke3 {[%emt 0:00:02]} (67. Ra5 $142 {Hoping for Rg5.} Rg8 68. Re5) 67... Kg6 {[%emt 0:00:02]} (67... Kg5 $18 68. Ra5+ Kg4) 68. Rh4 {[%emt 0:00:02]} Rc8 {[%emt 0:00:03]} 69. Rh1 {[%emt 0:00:01]} (69. Rh8 Rxc3+ 70. dxc3 a1=Q $11) (69. Kf4 $142 Rg8 70. Rh8 Rxg7 71. fxg7 f6 72. g8=Q+ (72. g8=R+ Bxg8 73. Rxg8+ Kf7 $18) 72... Bxg8 73. Rxg8+ Kf7 74. Rd8) 69... Bd5 {[%emt 0:00:03]} 70. Rg1+ {[%emt 0:00:03]} (70. Rh8 $142 Rxc3+ 71. dxc3 a1=Q 72. g8=Q+ (72. g8=R+ $2 {perishes.} Kxf6 73. Kd4 Qa2 $19) 72... Kxf6 73. Rh6+ Ke7 74. Qg5+ Ke8 75. Rh8+ (75. Qxd5 Qxc3+ 76. Ke2 Qb2+ 77. Qd2 Qe5+ 78. Qe3 Qe7 $18) 75... Kd7 76. Qxd5+ Kc7 77. Qxf7+ Kc6 78. Rh6+ Kc5 79. Qc7+ Kb5 80. Qc6+ Ka5 81. Rh5#) 70... Kh7 {[%emt 0:00:00]} 71. Ba1 {[%emt 0:00:01]} (71. Rg4 $142 {White threatens Rh4+ and mate.} Kh6 72. Rh4+ (72. g8=N+ Kh5 $18) (72. g8=Q Rxg8 73. Rxg8 Kh7 $18) 72... Kg5 73. Rh8 Rxc3+ 74. dxc3) 71... Rb8 {[%emt 0:00:02]} (71... Re8+ $18 72. Kf2 Kg8) 72. Rg5 {[%emt 0:00:01] White mates.} Be6 {[%emt 0:00:04]} 73. Rh5+ {[%emt 0:00:01]} Kg6 {[%emt 0:00:01]} 74. Rh8 {[%emt 0:00:01]} Rb3+ {[%emt 0:00:01]} 75. d3 {[%emt 0:00:01] Weighted Error Value: White=0.68/Black=0.78  Loses game:     	---       	Black=1      Missed win:     	White=1     	---        Mistake:       	White=3     	Black=10     Inaccurate:     	White=2     	Black=5      OK:         	White=21    	Black=15     Best:        	White=5     	Black=3      Strong:       	White=1     	---} 1-0